[Event "Eurasia Open Cup 2019"]
[Site "Ekaterinburg"]
[Date "2019.08.02"]
[Round "3.16"]
[White "Drygalov, Sergey"]
[Black "Inozemtsev, Sergei"]
[Result "1-0"]
[ECO "E15"]
[WhiteElo "2492"]
[BlackElo "2295"]
[Annotator "ChessBase"]
[PlyCount "102"]
[EventDate "2019.07.31"]
[EventType "swiss"]
[EventCountry "RUS"]
[SourceTitle "playchess.com"]
[Source "ChessBase"]
[SourceQuality "1"]
[TimeControl "5400+30"]

1. d4 {[%emt 0:00:00]} e6 {[%emt 0:00:50]} 2. c4 {[%emt 0:00:00]} Nf6 {[%emt 0:00:06]} 3. Nf3 {[%emt 0:00:00]} b6 {[%emt 0:00:55]} 4. g3 {[%emt 0:00:00]} Ba6 {[%emt 0:00:00]} 5. Qc2 {[%emt 0:00:00]} c5 {[%emt 0:00:02]} 6. d5 {[%emt 0:00:00]} exd5 {[%emt 0:00:07]} 7. cxd5 {[%emt 0:00:00]} Bb7 {[%emt 0:00:06]} 8. Bg2 {[%emt 0:00:00]} Nxd5 {[%emt 0:00:50]} 9. O-O {[%emt 0:00:00]} Nc6 {[%emt 0:00:27]} 10. Rd1 {[%emt 0:00:22]} Be7 {[%emt 0:00:32]} 11. Qa4 {[%emt 0:02:17]} Nf6 {[%emt 0:01:42]} 12. Nc3 {[%emt 0:05:47]} O-O {[%emt 0:02:44]} 13. g4 {[%emt 0:00:33]} Rb8 {[%emt 0:03:07]} 14. g5 {[%emt 0:01:22]} Nh5 {[%emt 0:10:37]} 15. Qg4 {[%emt 0:04:12]} g6 {[%emt 0:02:47]} 16. Nd5 {[%emt 0:25:06]} Re8 {[%emt 0:00:15]} 17. Bf4 {[%emt 0:00:47]} Nxf4 {[%emt 0:16:17]} 18. Nxf4 {[%emt 0:16:31]} d6 {[%emt 0:06:48]} 19. Nd5 {[%emt 0:11:51]} Na5 {[%emt 0:07:34]} 20. h4 {[%emt 0:01:20]} Bxd5 {[%emt 0:27:05]} 21. Rxd5 {[%emt 0:04:14]} Bf8 {[%emt 0:01:24]} 22. e3 {[%emt 0:00:02]} Nc6 {[%emt 0:00:38]} 23. Qf4 {[%emt 0:02:11]} Qe7 {[%emt 0:01:23]} 24. Rad1 {[%emt 0:03:34]} Red8 {[%emt 0:09:15]} 25. a3 {[%emt 0:05:01]} Bg7 {[%emt 0:00:26]} 26. b3 {[%emt 0:00:27]} Na5 {[%emt 0:03:41]} 27. b4 {[%emt 0:00:13]} cxb4 {[%emt 0:00:42]} 28. axb4 {[%emt 0:00:36]} Nc6 {[%emt 0:00:24]} 29. b5 {[%emt 0:00:21]} Ne5 {[%emt 0:00:00]} 30. Nd2 {[%emt 0:02:17]} Nd7 {[%emt 0:00:43]} 31. Qxd6 {[%emt 0:00:31]} Qxd6 {[%emt 0:01:13]} 32. Rxd6 {[%emt 0:01:42]} Nc5 {[%emt 0:00:14]} 33. Nc4 {[%emt 0:00:00]} Rxd6 {[%emt 0:00:52]} 34. Rxd6 {[%emt 0:00:00]} Kf8 {[%emt 0:00:28]} 35. Rc6 {[%emt 0:00:00]} Rd8 {[%emt 0:01:38]} 36. Rc7 {[%emt 0:00:25]} Rd7 {[%emt 0:00:44]} 37. Rc8+ {[%emt 0:01:27]} Ke7 {[%emt 0:00:00]} 38. Bc6 {[%emt 0:00:00]} Rd1+ {[%emt 0:00:35]} 39. Kg2 {[%emt 0:00:00]} Rd8 {[%emt 0:00:36]} 40. Rc7+ {[%emt 0:00:00]} Ke6 {[%emt 0:01:12]} 41. Rxa7 {[%emt 0:00:05]} Rb8 {[%emt 0:00:11]} 42. e4 {[%emt 0:00:38]} Rd8 {[%emt 0:00:46]} 43. Bd5+ {[%emt 0:00:06]} Rxd5 {[%emt 0:00:21]} 44. exd5+ {[%emt 0:00:00]} Kxd5 {[%emt 0:00:33]} 45. Nxb6+ {[%emt 0:00:00]} Ke6 {[%emt 0:00:00]} 46. Nc8 {[%emt 0:00:11]} Nd7 {[%emt 0:00:17]} 47. Ra6+ {[%emt 0:01:04]} Ke5 {[%emt 0:00:00]} 48. b6 {[%emt 0:00:00]} Nb8 {[%emt 0:00:54]} 49. Ra8 {[%emt 0:00:36]} Nc6 {[%emt 0:00:58]} 50. b7 {[%emt 0:00:07]} Kf4 {[%emt 0:00:07]} 51. Na7 {[%emt 0:00:00]} Ke5 {[%emt 0:00:45]} 1-0

[Event "Eurasia Open Cup 2019"]
[Site "Ekaterinburg"]
[Date "2019.08.02"]
[Round "3.17"]
[White "Matsenko, Andrei"]
[Black "Kostenko, Petr"]
[Result "0-1"]
[ECO "A15"]
[WhiteElo "2293"]
[BlackElo "2471"]
[Annotator "ChessBase"]
[PlyCount "88"]
[EventDate "2019.07.31"]
[EventType "swiss"]
[EventCountry "RUS"]
[SourceTitle "playchess.com"]
[Source "ChessBase"]
[SourceQuality "1"]
[TimeControl "5400+30"]

1. Nf3 {[%emt 0:00:00]} Nf6 {[%emt 0:06:17]} 2. c4 {[%emt 0:00:00]} b6 {[%emt 0:01:02]} 3. g3 {[%emt 0:00:31]} Bb7 {[%emt 0:00:00]} 4. Bg2 {[%emt 0:00:47]} g6 {[%emt 0:00:21]} 5. b3 {[%emt 0:00:05]} Bg7 {[%emt 0:00:06]} 6. Bb2 {[%emt 0:00:07]} O-O {[%emt 0:00:08]} 7. O-O {[%emt 0:00:12]} e6 {[%emt 0:00:30]} 8. d4 {[%emt 0:02:52]} d6 {[%emt 0:09:59]} 9. Nbd2 {[%emt 0:04:02]} c5 {[%emt 0:01:57]} 10. Qc2 {[%emt 0:13:39]} Qc7 {[%emt 0:10:17]} 11. Rac1 {[%emt 0:05:12]} Nbd7 {[%emt 0:01:12]} 12. Rfd1 {[%emt 0:04:15]} a6 {[%emt 0:00:13]} 13. Qb1 {[%emt 0:02:03]} cxd4 {[%emt 0:01:42]} 14. Nxd4 {[%emt 0:00:46]} Bxg2 {[%emt 0:00:08]} 15. Kxg2 {[%emt 0:00:03]} Qb7+ {[%emt 0:00:00]} 16. N4f3 {[%emt 0:07:02]} Rfc8 {[%emt 0:02:43]} 17. Kg1 {[%emt 0:05:24]} b5 {[%emt 0:00:06]} 18. cxb5 {[%emt 0:02:36]} axb5 {[%emt 0:03:53]} 19. Rxc8+ {[%emt 0:00:07]} Qxc8 {[%emt 0:02:08]} 20. a3 {[%emt 0:01:51]} Qa6 {[%emt 0:05:45]} 21. e4 {[%emt 0:08:24]} Ne8 {[%emt 0:02:59]} 22. Nd4 {[%emt 0:04:44]} Nc5 {[%emt 0:06:17]} 23. b4 {[%emt 0:02:25]} Na4 {[%emt 0:00:37]} 24. Ba1 {[%emt 0:00:04]} e5 {[%emt 0:05:30]} 25. N4b3 {[%emt 0:01:53]} Rc8 {[%emt 0:01:20]} 26. Qd3 {[%emt 0:01:56]} Bh6 {[%emt 0:04:03]} 27. Na5 {[%emt 0:04:12]} Bg5 {[%emt 0:08:39]} 28. Nb1 {[%emt 0:04:34]} Bd8 {[%emt 0:02:58]} 29. Nc3 {[%emt 0:01:16]} Bxa5 {[%emt 0:01:31]} 30. bxa5 {[%emt 0:00:00]} Rc4 {[%emt 0:05:12]} 31. Nxa4 {[%emt 0:01:37]} Rxa4 {[%emt 0:00:06]} 32. f4 {[%emt 0:00:52]} Qxa5 {[%emt 0:08:46]} 33. fxe5 {[%emt 0:00:59]} Rxa3 {[%emt 0:00:27]} 34. Qd4 {[%emt 0:00:53]} Ra4 {[%emt 0:01:12]} 35. Qb2 {[%emt 0:00:05]} Rb4 {[%emt 0:03:57]} 36. Qc3 {[%emt 0:01:44]} Qa4 {[%emt 0:00:54]} 37. Rf1 {[%emt 0:01:00]} Rc4 {[%emt 0:00:00]} 38. Qf3 {[%emt 0:01:36]} Qa7+ {[%emt 0:00:00]} 39. Kh1 {[%emt 0:00:18]} dxe5 {[%emt 0:00:53]} 40. Bxe5 {[%emt 0:00:20]} Qe7 {[%emt 0:01:02]} 41. Qf4 {[%emt 0:01:24]} f5 {[%emt 0:00:29]} 42. Re1 {[%emt 0:00:29]} Qb7 {[%emt 0:00:51]} 43. Qf3 {[%emt 0:01:38]} Rxe4 {[%emt 0:00:07]} 44. Qb3+ {[%emt 0:00:08]} Kf8 {[%emt 0:02:01]} 0-1

[Event "Eurasia Open Cup 2019"]
[Site "Ekaterinburg"]
[Date "2019.08.02"]
[Round "3.18"]
[White "Kezin, Roman"]
[Black "Isaev, Anton"]
[Result "1/2-1/2"]
[ECO "A18"]
[WhiteElo "2470"]
[BlackElo "2191"]
[Annotator "ChessBase"]
[PlyCount "108"]
[EventDate "2019.07.31"]
[EventType "swiss"]
[EventCountry "RUS"]
[SourceTitle "playchess.com"]
[Source "ChessBase"]
[SourceQuality "1"]
[TimeControl "5400+30"]

1. c4 {[%emt 0:00:00]} Nf6 {[%emt 0:00:00]} 2. Nc3 {[%emt 0:00:00]} e6 {[%emt 0:00:00]} 3. e4 {[%emt 0:00:00]} d5 {[%emt 0:00:00]} 4. e5 {[%emt 0:04:11]} d4 {[%emt 0:00:00]} 5. exf6 {[%emt 0:00:03]} dxc3 {[%emt 0:00:15]} 6. bxc3 {[%emt 0:00:02]} Qxf6 {[%emt 0:00:00]} 7. d4 {[%emt 0:00:03]} e5 {[%emt 0:00:00]} 8. Nf3 {[%emt 0:01:20]} Nc6 {[%emt 0:00:00]} 9. Bd3 {[%emt 0:04:29]} Bg4 {[%emt 0:03:08]} 10. d5 {[%emt 0:03:26]} Bxf3 {[%emt 0:00:33]} 11. gxf3 {[%emt 0:13:44]} Nb8 {[%emt 0:03:09]} 12. Rb1 {[%emt 0:13:26]} b6 {[%emt 0:00:35]} 13. Be4 {[%emt 0:11:03]} Bd6 {[%emt 0:02:16]} 14. Rg1 {[%emt 0:03:35]} h6 {[%emt 0:02:40]} 15. Qa4+ {[%emt 0:01:23]} Nd7 {[%emt 0:00:46]} 16. c5 {[%emt 0:06:05]} bxc5 {[%emt 0:03:20]} 17. Be3 {[%emt 0:10:52]} Ke7 {[%emt 0:01:01]} 18. Rb7 {[%emt 0:00:13]} Rhb8 {[%emt 0:03:24]} 19. Rxb8 {[%emt 0:06:25]} Rxb8 {[%emt 0:05:37]} 20. Qxa7 {[%emt 0:00:02]} Kf8 {[%emt 0:00:09]} 21. Kd2 {[%emt 0:00:09]} Qd8 {[%emt 0:00:00]} 22. Ra1 {[%emt 0:04:24]} Nb6 {[%emt 0:00:42]} 23. Qa6 {[%emt 0:10:59]} Qd7 {[%emt 0:00:53]} 24. Qd3 {[%emt 0:02:59]} Qa4 {[%emt 0:00:15]} 25. Ke1 {[%emt 0:01:15]} Nc4 {[%emt 0:00:37]} 26. Bc1 {[%emt 0:01:21]} Be7 {[%emt 0:01:09]} 27. Qc2 {[%emt 0:00:36]} Qa5 {[%emt 0:05:05]} 28. Rb1 {[%emt 0:00:44]} Rxb1 {[%emt 0:00:02]} 29. Qxb1 {[%emt 0:00:39]} Qxc3+ {[%emt 0:00:41]} 30. Ke2 {[%emt 0:00:01]} Qb4 {[%emt 0:00:07]} 31. Qd3 {[%emt 0:00:15]} Bg5 {[%emt 0:01:41]} 32. a3 {[%emt 0:00:20]} Qb5 {[%emt 0:00:51]} 33. d6 {[%emt 0:00:43]} cxd6 {[%emt 0:00:31]} 34. Bd5 {[%emt 0:01:04]} Bxc1 {[%emt 0:11:45]} 35. Bxc4 {[%emt 0:00:31]} Qb2+ {[%emt 0:00:13]} 36. Kd1 {[%emt 0:00:00]} Bg5 {[%emt 0:03:45]} 37. Qxd6+ {[%emt 0:00:40]} Kg8 {[%emt 0:00:41]} 38. Qd5 {[%emt 0:00:42]} Qd4+ {[%emt 0:00:48]} 39. Kc2 {[%emt 0:00:38]} Qxd5 {[%emt 0:00:19]} 40. Bxd5 {[%emt 0:00:46]} Bh4 {[%emt 0:03:11]} 41. a4 {[%emt 0:00:00]} Bxf2 {[%emt 0:01:39]} 42. a5 {[%emt 0:00:00]} c4 {[%emt 0:00:00]} 43. a6 {[%emt 0:01:04]} g6 {[%emt 0:00:00]} 44. Kc3 {[%emt 0:00:08]} Kg7 {[%emt 0:00:53]} 45. Kxc4 {[%emt 0:00:39]} f5 {[%emt 0:00:53]} 46. Bc6 {[%emt 0:00:11]} Kf6 {[%emt 0:00:07]} 47. Kd5 {[%emt 0:00:51]} h5 {[%emt 0:00:39]} 48. Be8 {[%emt 0:00:41]} Ba7 {[%emt 0:03:39]} 49. h3 {[%emt 0:01:05]} Bg1 {[%emt 0:00:47]} 50. Bb5 {[%emt 0:00:05]} g5 {[%emt 0:01:49]} 51. Be8 {[%emt 0:00:27]} h4 {[%emt 0:01:15]} 52. Bd7 {[%emt 0:00:35]} Bf2 {[%emt 0:04:49]} 53. Bc8 {[%emt 0:00:06]} Ba7 {[%emt 0:00:41]} 54. Bd7 {[%emt 0:00:20]} Bf2 {[%emt 0:08:10]} 1/2-1/2

[Event "Eurasia Open Cup 2019"]
[Site "Ekaterinburg"]
[Date "2019.08.02"]
[Round "3.19"]
[White "Kyshtymov, Daniil"]
[Black "Hamitevici, Vladimir"]
[Result "1-0"]
[ECO "B15"]
[WhiteElo "2176"]
[BlackElo "2480"]
[Annotator "ChessBase"]
[PlyCount "113"]
[EventDate "2019.07.31"]
[EventType "swiss"]
[EventCountry "RUS"]
[SourceTitle "playchess.com"]
[Source "ChessBase"]
[SourceQuality "1"]
[TimeControl "5400+30"]

1. e4 {[%emt 0:00:00]} c6 {[%emt 0:09:55]} 2. d4 {[%emt 0:00:00]} d5 {[%emt 0:00:05]} 3. Nc3 {[%emt 0:00:00]} dxe4 {[%emt 0:01:24]} 4. Nxe4 {[%emt 0:00:00]} Nf6 {[%emt 0:00:37]} 5. Nxf6+ {[%emt 0:00:00]} exf6 {[%emt 0:00:02]} 6. c3 {[%emt 0:00:00]} Bd6 {[%emt 0:00:37]} 7. Bd3 {[%emt 0:00:00]} O-O {[%emt 0:00:14]} 8. Qc2 {[%emt 0:00:06]} Re8+ {[%emt 0:00:00]} 9. Ne2 {[%emt 0:00:38]} h5 {[%emt 0:00:35]} 10. Be3 {[%emt 0:00:00]} h4 {[%emt 0:03:14]} 11. O-O-O {[%emt 0:16:01]} Qa5 {[%emt 0:03:08]} 12. Kb1 {[%emt 0:01:59]} Be6 {[%emt 0:01:44]} 13. c4 {[%emt 0:23:09]} Na6 {[%emt 0:02:49]} 14. Bd2 {[%emt 0:08:50]} Nb4 {[%emt 0:05:45]} 15. a3 {[%emt 0:06:30]} Nxc2 {[%emt 0:06:49]} 16. Bxa5 {[%emt 0:01:14]} Bg4 {[%emt 0:01:05]} 17. Rd2 {[%emt 0:24:32]} Bxe2 {[%emt 0:01:37]} 18. Bxe2 {[%emt 0:00:25]} Rxe2 {[%emt 0:00:41]} 19. Rxe2 {[%emt 0:00:00]} Nxd4 {[%emt 0:00:39]} 20. Rd2 {[%emt 0:02:56]} c5 {[%emt 0:00:40]} 21. Bc3 {[%emt 0:00:54]} Be5 {[%emt 0:01:57]} 22. Bxd4 {[%emt 0:05:41]} Bxd4 {[%emt 0:00:52]} 23. Re1 {[%emt 0:00:09]} Kf8 {[%emt 0:00:58]} 24. Re4 {[%emt 0:00:37]} g5 {[%emt 0:00:11]} 25. Rde2 {[%emt 0:00:36]} Rb8 {[%emt 0:07:40]} 26. Re7 {[%emt 0:01:17]} a6 {[%emt 0:00:31]} 27. Rc7 {[%emt 0:05:16]} Be5 {[%emt 0:01:53]} 28. Rxc5 {[%emt 0:01:14]} Bxh2 {[%emt 0:00:14]} 29. Rd5 {[%emt 0:00:20]} Be5 {[%emt 0:00:12]} 30. Kc2 {[%emt 0:00:51]} Ke7 {[%emt 0:01:26]} 31. f3 {[%emt 0:00:40]} Ke6 {[%emt 0:01:50]} 32. b4 {[%emt 0:00:47]} Rh8 {[%emt 0:00:31]} 33. Red2 {[%emt 0:00:34]} h3 {[%emt 0:02:12]} 34. gxh3 {[%emt 0:00:39]} Rxh3 {[%emt 0:00:54]} 35. R2d3 {[%emt 0:00:03]} Rh2+ {[%emt 0:00:06]} 36. Kb3 {[%emt 0:00:27]} f5 {[%emt 0:01:11]} 37. c5 {[%emt 0:00:58]} Rf2 {[%emt 0:00:34]} 38. Rd7 {[%emt 0:00:33]} Rxf3 {[%emt 0:01:37]} 39. Rxf3 {[%emt 0:00:30]} Kxd7 {[%emt 0:01:12]} 40. Rxf5 {[%emt 0:00:26]} f6 {[%emt 0:00:00]} 41. Kc4 {[%emt 0:00:36]} Ke6 {[%emt 0:00:00]} 42. Rf1 {[%emt 0:00:17]} g4 {[%emt 0:00:00]} 43. a4 {[%emt 0:00:38]} f5 {[%emt 0:00:14]} 44. b5 {[%emt 0:00:57]} axb5+ {[%emt 0:00:38]} 45. axb5 {[%emt 0:00:00]} f4 {[%emt 0:00:36]} 46. c6 {[%emt 0:00:28]} bxc6 {[%emt 0:02:24]} 47. bxc6 {[%emt 0:00:39]} Bc7 {[%emt 0:02:44]} 48. Kd4 {[%emt 0:00:02]} Kf5 {[%emt 0:01:46]} 49. Rb1 {[%emt 0:01:00]} g3 {[%emt 0:00:10]} 50. Kd3 {[%emt 0:00:29]} Bd6 {[%emt 0:00:44]} 51. Rb7 {[%emt 0:00:29]} f3 {[%emt 0:05:42]} 52. Ke3 {[%emt 0:00:29]} g2 {[%emt 0:09:52]} 53. Rg7 {[%emt 0:00:19]} Kf6 {[%emt 0:00:07]} 54. Rg4 {[%emt 0:01:07]} Kf5 {[%emt 0:00:03]} 55. Kxf3 {[%emt 0:00:03]} Ke6 {[%emt 0:02:11]} 56. Ke4 {[%emt 0:00:16]} Bc7 {[%emt 0:00:08]} 57. Rg6+ {[%emt 0:00:41]} 1-0

[Event "Eurasia Open Cup 2019"]
[Site "Ekaterinburg"]
[Date "2019.08.02"]
[Round "3.21"]
[White "Balashov, Yuri S"]
[Black "Krasikov, Vladislav"]
[Result "1/2-1/2"]
[ECO "E97"]
[WhiteElo "2474"]
[BlackElo "2211"]
[Annotator "ChessBase"]
[PlyCount "88"]
[EventDate "2019.07.31"]
[EventType "swiss"]
[EventCountry "RUS"]
[SourceTitle "playchess.com"]
[Source "ChessBase"]
[SourceQuality "1"]
[TimeControl "5400+30"]

1. c4 {[%emt 0:00:00]} g6 {[%emt 0:02:14]} 2. e4 {[%emt 0:00:00]} Bg7 {[%emt 0:01:45]} 3. d4 {[%emt 0:00:00]} d6 {[%emt 0:00:21]} 4. Nc3 {[%emt 0:00:00]} Nf6 {[%emt 0:00:00]} 5. Be2 {[%emt 0:00:24]} O-O {[%emt 0:00:00]} 6. Nf3 {[%emt 0:00:00]} e5 {[%emt 0:00:27]} 7. O-O {[%emt 0:00:00]} Nc6 {[%emt 0:00:00]} 8. d5 {[%emt 0:00:03]} Ne7 {[%emt 0:00:00]} 9. b4 {[%emt 0:00:40]} a5 {[%emt 0:00:04]} 10. Ba3 {[%emt 0:00:29]} b6 {[%emt 0:00:38]} 11. bxa5 {[%emt 0:01:02]} Rxa5 {[%emt 0:00:07]} 12. Bb4 {[%emt 0:00:40]} Ra8 {[%emt 0:00:12]} 13. a4 {[%emt 0:00:31]} Ne8 {[%emt 0:00:29]} 14. Nb5 {[%emt 0:02:18]} f5 {[%emt 0:05:25]} 15. Nd2 {[%emt 0:04:14]} Bd7 {[%emt 0:08:36]} 16. Ra3 {[%emt 0:08:53]} Nf6 {[%emt 0:06:33]} 17. f3 {[%emt 0:00:43]} Bh6 {[%emt 0:02:42]} 18. Qc2 {[%emt 0:09:59]} Kh8 {[%emt 0:12:45]} 19. Rfa1 {[%emt 0:06:52]} Nh5 {[%emt 0:10:49]} 20. g3 {[%emt 0:01:46]} fxe4 {[%emt 0:06:04]} 21. fxe4 {[%emt 0:01:12]} Ng8 {[%emt 0:02:04]} 22. Qd1 {[%emt 0:08:55]} Ngf6 {[%emt 0:25:29]} 23. Bf3 {[%emt 0:00:08]} Bh3 {[%emt 0:03:20]} 24. Qe2 {[%emt 0:01:41]} Qd7 {[%emt 0:00:51]} 25. Nf1 {[%emt 0:15:46]} Ng4 {[%emt 0:01:30]} 26. Bd2 {[%emt 0:03:03]} Bxd2 {[%emt 0:01:47]} 27. Nxd2 {[%emt 0:00:36]} Nhf6 {[%emt 0:05:45]} 28. Bg2 {[%emt 0:00:57]} Bxg2 {[%emt 0:00:55]} 29. Kxg2 {[%emt 0:00:21]} Nh6 {[%emt 0:02:19]} 30. a5 {[%emt 0:03:01]} bxa5 {[%emt 0:00:17]} 31. Rxa5 {[%emt 0:00:25]} Rxa5 {[%emt 0:00:00]} 32. Rxa5 {[%emt 0:00:10]} Qg4 {[%emt 0:00:21]} 33. Qxg4 {[%emt 0:03:51]} Nfxg4 {[%emt 0:00:02]} 34. Kg1 {[%emt 0:00:19]} Nxh2 {[%emt 0:02:08]} 35. Nxc7 {[%emt 0:02:07]} N2g4 {[%emt 0:00:59]} 36. Nb5 {[%emt 0:01:31]} Rf2 {[%emt 0:00:00]} 37. Ra8+ {[%emt 0:01:43]} Kg7 {[%emt 0:00:07]} 38. Nf1 {[%emt 0:00:15]} Nf7 {[%emt 0:00:18]} 39. Ra7 {[%emt 0:02:05]} Kg8 {[%emt 0:00:34]} 40. Ra8+ {[%emt 0:01:04]} Kg7 {[%emt 0:00:31]} 41. Ra7 {[%emt 0:00:20]} Kg8 {[%emt 0:00:00]} 42. Ra8+ {[%emt 0:00:43]} Kg7 {[%emt 0:00:00]} 43. Ra7 {[%emt 0:00:11]} Rf3 {[%emt 0:00:15]} 44. Ne3 {[%emt 0:00:30]} Rf2 {[%emt 0:00:00]} 1/2-1/2

[Event "Eurasia Open Cup 2019"]
[Site "Ekaterinburg"]
[Date "2019.08.02"]
[Round "3.22"]
[White "Safin, Robert"]
[Black "Ulybin, Mikhail"]
[Result "1-0"]
[ECO "D02"]
[WhiteElo "2188"]
[BlackElo "2469"]
[Annotator "ChessBase"]
[PlyCount "164"]
[EventDate "2019.07.31"]
[EventType "swiss"]
[EventCountry "RUS"]
[SourceTitle "playchess.com"]
[Source "ChessBase"]
[SourceQuality "1"]
[TimeControl "5400+30"]

1. d4 {[%emt 0:00:00]} e6 {[%emt 0:04:10]} 2. g3 {[%emt 0:00:00]} c5 {[%emt 0:01:24]} 3. c3 {[%emt 0:01:20]} Nf6 {[%emt 0:01:57]} 4. Bg2 {[%emt 0:00:45]} d5 {[%emt 0:01:04]} 5. Nf3 {[%emt 0:02:59]} Nc6 {[%emt 0:01:34]} 6. O-O {[%emt 0:01:39]} Bd6 {[%emt 0:04:13]} 7. Bf4 {[%emt 0:07:33]} Bxf4 {[%emt 0:20:42]} 8. gxf4 {[%emt 0:00:09]} Qb6 {[%emt 0:01:04]} 9. b3 {[%emt 0:01:11]} O-O {[%emt 0:06:46]} 10. e3 {[%emt 0:05:01]} Bd7 {[%emt 0:02:19]} 11. Nbd2 {[%emt 0:04:35]} Rfd8 {[%emt 0:03:33]} 12. Ne5 {[%emt 0:02:29]} Be8 {[%emt 0:10:31]} 13. a3 {[%emt 0:04:00]} Rac8 {[%emt 0:02:03]} 14. Kh1 {[%emt 0:08:01]} Ne7 {[%emt 0:01:30]} 15. Rc1 {[%emt 0:14:14]} Nf5 {[%emt 0:06:29]} 16. a4 {[%emt 0:11:29]} Rc7 {[%emt 0:06:31]} 17. Nd3 {[%emt 0:05:12]} cxd4 {[%emt 0:01:00]} 18. cxd4 {[%emt 0:00:06]} Rdc8 {[%emt 0:01:25]} 19. Rxc7 {[%emt 0:00:32]} Rxc7 {[%emt 0:03:43]} 20. Qb1 {[%emt 0:08:43]} Qa5 {[%emt 0:05:41]} 21. Rc1 {[%emt 0:04:49]} Rc3 {[%emt 0:02:39]} 22. Bf1 {[%emt 0:00:20]} b5 {[%emt 0:05:48]} 23. axb5 {[%emt 0:00:21]} Bxb5 {[%emt 0:03:18]} 24. Qb2 {[%emt 0:01:09]} Rxc1 {[%emt 0:00:22]} 25. Qxc1 {[%emt 0:02:58]} g6 {[%emt 0:01:16]} 26. Kg1 {[%emt 0:00:35]} Kg7 {[%emt 0:00:35]} 27. Nc5 {[%emt 0:02:39]} Bxf1 {[%emt 0:00:24]} 28. Nxf1 {[%emt 0:03:11]} Nh4 {[%emt 0:00:59]} 29. Qd1 {[%emt 0:00:39]} Qa2 {[%emt 0:00:13]} 30. h3 {[%emt 0:01:30]} Ne4 {[%emt 0:00:24]} 31. Nxe4 {[%emt 0:00:01]} dxe4 {[%emt 0:00:42]} 32. Nh2 {[%emt 0:00:23]} Qa5 {[%emt 0:00:34]} 33. Kh1 {[%emt 0:00:11]} h5 {[%emt 0:00:21]} 34. Nf1 {[%emt 0:01:30]} Qf5 {[%emt 0:00:16]} 35. Kh2 {[%emt 0:02:38]} Nf3+ {[%emt 0:00:51]} 36. Kg2 {[%emt 0:00:31]} Nh4+ {[%emt 0:00:30]} 37. Kh2 {[%emt 0:00:01]} Nf3+ {[%emt 0:01:01]} 38. Kg2 {[%emt 0:00:00]} Qa5 {[%emt 0:00:23]} 39. Ng3 {[%emt 0:00:00]} f5 {[%emt 0:00:29]} 40. Ne2 {[%emt 0:01:41]} Kf7 {[%emt 0:00:25]} 41. Kf1 {[%emt 0:00:58]} Ke7 {[%emt 0:00:06]} 42. Ng1 {[%emt 0:02:31]} Nh4 {[%emt 0:01:09]} 43. Ne2 {[%emt 0:01:44]} Kd6 {[%emt 0:00:28]} 44. Qc1 {[%emt 0:00:12]} Nf3 {[%emt 0:00:27]} 45. Nc3 {[%emt 0:00:34]} Qb4 {[%emt 0:00:00]} 46. Qa1 {[%emt 0:00:51]} a5 {[%emt 0:00:29]} 47. Kg2 {[%emt 0:01:03]} Nd2 {[%emt 0:00:57]} 48. Qb2 {[%emt 0:00:00]} Nxb3 {[%emt 0:00:00]} 49. Na2 {[%emt 0:00:00]} Qc4 {[%emt 0:00:54]} 50. Qa3+ {[%emt 0:00:51]} Kd7 {[%emt 0:00:41]} 51. Qf8 {[%emt 0:00:00]} Nd2 {[%emt 0:00:02]} 52. Qf7+ {[%emt 0:00:00]} Kc6 {[%emt 0:00:53]} 53. Qe8+ {[%emt 0:00:22]} Kc7 {[%emt 0:00:36]} 54. Qe7+ {[%emt 0:00:36]} Kb6 {[%emt 0:00:04]} 55. Qd6+ {[%emt 0:01:09]} Kb5 {[%emt 0:00:35]} 56. Qd7+ {[%emt 0:00:02]} Ka6 {[%emt 0:00:35]} 57. Qd6+ {[%emt 0:00:07]} Kb7 {[%emt 0:00:29]} 58. Qd7+ {[%emt 0:00:18]} Kb6 {[%emt 0:00:16]} 59. Qd6+ {[%emt 0:00:06]} Qc6 {[%emt 0:00:16]} 60. Qb8+ {[%emt 0:00:19]} Ka6 {[%emt 0:00:09]} 61. h4 {[%emt 0:01:34]} Nc4 {[%emt 0:00:34]} 62. Qg8 {[%emt 0:01:28]} Nxe3+ {[%emt 0:00:57]} 63. fxe3 {[%emt 0:00:00]} Qc2+ {[%emt 0:00:07]} 64. Kg3 {[%emt 0:00:05]} Qxa2 {[%emt 0:00:11]} 65. Qa8+ {[%emt 0:01:43]} Kb5 {[%emt 0:00:16]} 66. Qe8+ {[%emt 0:00:16]} Kb4 {[%emt 0:00:23]} 67. Qxg6 {[%emt 0:01:03]} Qe2 {[%emt 0:00:37]} 68. Qxe6 {[%emt 0:00:12]} Qxe3+ {[%emt 0:00:23]} 69. Kg2 {[%emt 0:00:03]} Qf3+ {[%emt 0:00:27]} 70. Kg1 {[%emt 0:00:14]} Qg3+ {[%emt 0:00:12]} 71. Kh1 {[%emt 0:00:01]} Qxh4+ {[%emt 0:00:26]} 72. Kg1 {[%emt 0:00:01]} Qg3+ {[%emt 0:00:41]} 73. Kh1 {[%emt 0:00:03]} Qe1+ {[%emt 0:01:58]} 74. Kg2 {[%emt 0:00:05]} Qe2+ {[%emt 0:00:22]} 75. Kh1 {[%emt 0:00:06]} Qf1+ {[%emt 0:00:25]} 76. Kh2 {[%emt 0:00:01]} Qxf4+ {[%emt 0:00:14]} 77. Kg2 {[%emt 0:00:01]} Qf3+ {[%emt 0:00:33]} 78. Kh2 {[%emt 0:00:04]} Qf2+ {[%emt 0:00:51]} 79. Kh1 {[%emt 0:00:03]} Qxd4 {[%emt 0:00:25]} 80. Qxf5 {[%emt 0:00:16]} Qd1+ {[%emt 0:00:25]} 81. Kh2 {[%emt 0:00:03]} Qe2+ {[%emt 0:00:22]} 82. Kg1 {[%emt 0:00:01]} Qg4+ {[%emt 0:00:20]} 1-0